bitfinex/quotes_SOLUSD_20220208
["timestamp","ask_amount","ask_price","bid_price","bid_amount"]
[1644338679641,74.27298257,112.07,112.0,13.4171]
[1644338681042,4.462,112.08,112.0,13.4171]
[1644338681243,23.0306,112.09,112.0,28.47214112]
[1644338681442,1.25885904,112.1,112.01,0.024]
[1644338681644,1.25885904,112.11,112.03,13.3872]
[1644338681846,4.461,112.1,112.03,13.4112]
[1644338682042,38.92645088,112.09,112.03,19.4112]
[1644338682242,38.92645088,112.09,112.03,13.3872]
[1644338685749,23.1301,112.1,112.03,13.3872]
[1644338686051,23.1301,112.1,112.03,13.6372]
[1644338686248,23.1301,112.1,112.03,13.6612]
[1644338686648,23.1301,112.1,112.04,4.461]
[1644338686847,23.1301,112.1,112.05,13.387]
[1644338688853,5.71985904,112.12,112.05,13.387]
[1644338689050,5.71985904,112.12,112.05,13.637]
[1644338689251,1.25885904,112.12,112.05,21.581]
[1644338689451,24.71785904,112.13,112.05,23.57604112]
[1644338689653,1.25885904,112.13,112.06,4.46]
[1644338689853,28.0135,112.15,112.08,13.3826]
[1644338689854,1.25885904,112.14,112.08,13.3826]
[1644338690051,1.25885904,112.15,112.08,13.3826]
[1644338690451,1.25885904,112.15,112.08,36.0647]
[1644338691054,1.25885904,112.16,112.1,13.3792]
[1644338691260,27.8208,112.18,112.11,14.96464104]
[1644338691261,1.25885904,112.17,112.11,14.96464104]
[1644338691653,1.25885904,112.19,112.11,23.20968216]
[1644338691854,1.25885904,112.2,112.11,23.20968216]
[1644338692254,1.25885904,112.2,112.12,13.3755]
[1644338692455,1.25885904,112.2,112.12,26.1855]
[1644338692754,4.457,112.22,112.12,26.1855]
[1644338692755,1.25885904,112.21,112.13,6.45204112]
[1644338692956,4.457,112.22,112.14,12.81]
[1644338693153,1.25885904,112.23,112.15,4.457]
[1644338693355,47.52645904,112.25,112.15,19.26204112]
[1644338693556,47.52645904,112.25,112.16,6.80328425]
[1644338693757,47.52645904,112.25,112.18,13.3692]
[1644338693956,1.25885904,112.26,112.18,13.3692]
[1644338694157,1.25885904,112.26,112.18,13.6192]
[1644338694454,4.37019114,112.27,112.18,13.6192]
[1644338694656,8.82519114,112.27,112.19,2.15464104]
[1644338694954,7.5663321,112.27,112.21,13.3683]
[1644338695155,7.5663321,112.27,112.21,26.1783]
[1644338695156,3.1113321,112.27,112.21,26.1783]
[1644338695459,3.1113321,112.27,112.22,4.454]
[1644338695654,3.1113321,112.27,112.22,25.25438168]
[1644338695854,3.1113321,112.27,112.23,20.16618425]
[1644338696054,3.1113321,112.27,112.23,38.97618425]
[1644338696256,3.1113321,112.27,112.23,39.22618425]
[1644338696459,3.1113321,112.27,112.23,26.1729]
[1644338696655,3.1113321,112.27,112.16,24.6941]
[1644338696855,3.1113321,112.27,112.2,13.3686]
[1644338697058,4.454,112.26,112.2,13.3686]
[1644338697456,43.21822078,112.26,112.17,57.372]
[1644338697658,45.32597627,112.26,112.17,12.81]
[1644338698155,58.69757627,112.26,112.17,12.81]
[1644338698357,58.69757627,112.26,112.13,23.747]
[1644338698559,47.5287,112.25,112.1,160.17]
[1644338698759,4.457,112.24,112.1,23.5485]
[1644338698963,19.37475549,112.24,112.08,110.864]
[1644338699158,2.10775549,112.23,112.08,104.054]
[1644338699359,17.268,112.22,112.08,106.03955704]
[1644338699557,45.0311433,112.21,112.1,13.3797]
[1644338699858,47.9156999,112.19,112.1,13.3797]
[1644338700858,61.2955999,112.19,112.1,13.3797]
[1644338701259,37.14535118,112.17,112.1,13.3797]
[1644338701660,4.458,112.18,112.1,13.3797]
[1644338701960,13.3774,112.2,112.11,1.98555704]
[1644338702159,47.5446,112.21,112.14,13.3753]
[1644338702561,50.0398452,112.2,112.14,13.3753]
[1644338703662,50.0398452,112.2,112.14,13.6253]
[1644338703966,45.5828452,112.2,112.14,13.3753]
[1644338704761,4.457,112.19,112.11,1.98555704]
[1644338704961,4.457,112.19,112.1,4.457]
[1644338705160,58.9592452,112.2,112.1,4.707]
[1644338705362,58.9592452,112.2,112.11,0.56060971]
[1644338705662,63.4172452,112.2,112.1,2.23555704]
[1644338705861,63.4172452,112.2,112.12,13.3782]
[1644338706062,58.9592452,112.2,112.12,13.3782]
[1644338706665,58.9592452,112.2,112.12,13.6282]
[1644338706866,58.9592452,112.2,112.1,0.25]
[1644338707067,13.3811,112.17,112.09,4.458]
[1644338707267,4.458,112.16,112.09,4.708]
[1644338707665,46.60461093,112.15,112.09,4.708]
[1644338707871,46.60461093,112.15,112.09,0.25]
[1644338708065,4.458,112.18,112.09,0.25]
[1644338708265,4.458,112.18,112.08,0.25]
[1644338708665,4.458,112.18,112.07,54.80130961]
[1644338708865,13.3817,112.16,112.09,13.3817]
[1644338709068,47.08844474,112.15,112.09,13.3817]
[1644338709266,47.08844474,112.15,112.09,13.6317]
[1644338709864,13.3817,112.16,112.09,13.6317]
[1644338710266,13.3817,112.16,112.09,15.61725704]
[1644338710465,13.3799,112.17,112.09,15.61725704]
[1644338710967,39.51932915,112.16,112.09,15.61725704]
[1644338711167,39.51932915,112.16,112.09,15.36725704]
[1644338711768,39.51932915,112.16,112.09,13.3817]
[1644338712773,52.90052915,112.16,112.09,13.3817]
[1644338712967,52.90052915,112.16,112.08,4.458]
[1644338713168,4.458,112.15,112.08,4.458]
[1644338713970,13.3835,112.14,112.08,4.458]
[1644338714173,68.8475,112.17,112.08,15.61865704]
[1644338714374,24.2349,112.17,112.08,15.61865704]
[1644338714576,24.2349,112.17,112.08,15.36865704]
[1644338714770,24.2349,112.17,112.08,13.3831]
[1644338714973,57.33850587,112.16,112.08,13.3831]
[1644338715669,57.33850587,112.16,112.08,15.90652958]
[1644338715870,13.3822,112.16,112.08,15.90652958]
[1644338716071,5.71685904,112.2,112.09,12.81]
[1644338716272,49.37955904,112.21,112.11,13.3787]
[1644338716670,49.37955904,112.21,112.12,12.81]
[1644338716874,88.58945759,112.21,112.13,7.04654317]
[1644338717070,88.58945759,112.21,112.13,13.48896502]
[1644338717271,88.58945759,112.21,112.14,13.3753]
[1644338717471,93.04645759,112.21,112.14,13.3753]
[1644338718096,106.42205759,112.21,112.12,12.81]
[1644338718374,4.457,112.2,112.11,46.81952185]
[1644338718673,36.59677122,112.19,112.12,13.3774]
[1644338719074,36.59677122,112.19,112.12,15.36282185]
[1644338719276,36.59677122,112.19,112.12,15.61282185]
[1644338719479,36.59677122,112.19,112.13,4.458]
[1644338719776,36.59677122,112.19,112.12,15.04542185]
[1644338720375,1.25885904,112.21,112.13,13.3762]
[1644338720577,1.25885904,112.22,112.14,17.267]
[1644338720779,1.29395297,112.23,112.14,19.50242185]
[1644338720978,1.29395297,112.23,112.14,25.50242185]
[1644338721177,1.29395297,112.23,112.14,19.50242185]
[1644338721377,45.22451141,112.22,112.14,19.50242185]
[1644338722080,1.29395297,112.23,112.14,19.50242185]
[1644338722478,0.03509393,112.23,112.15,1.98542185]
[1644338722679,0.03509393,112.23,112.16,13.3721]
[1644338722878,38.16645297,112.24,112.16,13.3721]
[1644338723079,85.84746318,112.24,112.16,18.0781]
[1644338723778,85.84746318,112.24,112.16,17.8281]
[1644338723979,47.71781167,112.22,112.15,13.3749]
[1644338724179,48.64676608,112.2,112.15,13.3749]
[1644338724380,17.8316,112.21,112.15,13.3749]
[1644338724583,1.25885904,112.22,112.15,13.3749]
[1644338724781,1.25885904,112.22,112.15,13.6249]
[1644338724979,24.79345297,112.24,112.15,13.6249]
[1644338725179,14.66595297,112.24,112.16,4.456]
[1644338725380,1.29395297,112.24,112.17,13.3717]
[1644338725601,1.25885904,112.24,112.17,13.3717]
[1644338725785,24.64085297,112.25,112.17,13.6217]
[1644338726187,1.25885904,112.24,112.17,13.6217]
[1644338726588,1.25885904,112.23,112.17,13.6217]
[1644338726788,1.25885904,112.24,112.17,13.6217]
[1644338726991,1.25885904,112.24,112.17,22.2677]
[1644338727790,37.37894884,112.24,112.17,22.2677]
[1644338728494,50.75124884,112.24,112.17,13.6217]
[1644338728693,1.25885904,112.23,112.17,13.6217]
[1644338728896,40.75636483,112.22,112.17,13.3717]
[1644338729091,42.01522387,112.22,112.14,12.81]
[1644338729391,42.0503178,112.22,112.14,12.81]
[1644338729594,42.01522387,112.22,112.14,17.267]
[1644338730192,42.01522387,112.22,112.14,17.517]
[1644338730493,1.25885904,112.22,112.14,17.517]
[1644338730694,1.25885904,112.22,112.15,13.3749]
[1644338731294,1.25885904,112.22,112.15,13.6249]
[1644338731494,1.25885904,112.23,112.15,32.4349]
[1644338731693,1.29395297,112.24,112.15,34.42032185]
[1644338732295,1.29395297,112.24,112.15,28.42032185]
[1644338733610,1.29395297,112.24,112.15,34.42032185]
[1644338733811,1.29395297,112.24,112.16,4.456]
[1644338734020,0.03509393,112.24,112.17,12.81]
[1644338734209,5.71485904,112.26,112.19,13.3641]
[1644338734210,0.03509393,112.25,112.19,13.3641]
[1644338734409,4.49109393,112.26,112.2,17.265]
[1644338734611,4.456,112.26,112.21,12.81]
[1644338734812,0.03509393,112.27,112.22,4.454]
[1644338735012,0.03509393,112.28,112.23,12.81]
[1644338735215,0.03509393,112.29,112.24,4.454]
[1644338735511,0.03509393,112.31,112.24,19.24942185]
[1644338735712,1.25885904,112.31,112.24,21.04542185]
[1644338735910,1.25885904,112.31,112.25,1.98542185]
[1644338736111,1.29395297,112.32,112.25,14.79542185]
[1644338736311,1.25885904,112.32,112.25,15.04542185]
[1644338736510,1.25885904,112.32,112.25,28.40452185]
[1644338736711,1.25885904,112.32,112.26,6.43742185]
[1644338736910,0.03509393,112.34,112.27,12.81]
[1644338737111,0.03509393,112.33,112.28,4.452]
[1644338737312,4.40528507,112.35,112.28,6.68742185]
[1644338737511,4.37019114,112.35,112.28,6.68742185]
[1644338737915,44.84182376,112.34,112.28,6.68742185]
[1644338738414,44.84182376,112.34,112.28,13.3561]
[1644338738616,44.84182376,112.34,112.25,1.98542185]
[1644338738812,35.67712501,112.32,112.25,13.06]
[1644338739014,35.67712501,112.32,112.25,12.81]
[1644338739412,35.67712501,112.32,112.26,13.3617]
[1644338740612,35.67712501,112.32,112.25,13.3629]
[1644338740815,4.452,112.31,112.21,61.8085]
[1644338741015,34.18849074,112.3,112.19,91.0413]
[1644338741216,34.22358467,112.3,112.19,91.0413]
[1644338741818,47.58988467,112.3,112.22,13.3665]
[1644338742019,4.453,112.29,112.22,13.3665]
[1644338742218,39.56124377,112.28,112.22,13.3665]
[1644338742822,39.56124377,112.28,112.19,49.0083]
[1644338743026,39.5963377,112.28,112.19,49.0083]
[1644338743224,52.9641377,112.28,112.21,13.3678]
[1644338743418,52.92904377,112.28,112.21,13.3678]
[1644338744222,39.56124377,112.28,112.21,13.6178]
[1644338744822,39.56124377,112.28,112.21,13.3678]
[1644338745823,39.56124377,112.28,112.21,13.6178]
[1644338746223,39.56124377,112.28,112.21,13.3678]
[1644338747024,39.56124377,112.28,112.21,13.6178]
[1644338748430,0.03509393,112.29,112.21,13.6178]
[1644338748626,0.03509393,112.29,112.24,13.3625]
[1644338748828,1.25885904,112.31,112.24,13.6125]
[1644338749028,1.29395297,112.32,112.24,34.40778657]
[1644338749229,29.86095297,112.33,112.24,34.40778657]
[1644338749426,73.67853301,112.33,112.25,4.453]
[1644338749626,69.22553301,112.33,112.25,61.7941]
[1644338749826,45.11153301,112.33,112.25,62.0441]
[1644338750529,45.11153301,112.33,112.25,57.5911]
[1644338750830,45.11153301,112.33,112.27,13.3594]
[1644338751131,45.07643908,112.33,112.27,13.3594]
[1644338752330,1.25885904,112.33,112.27,15.59468657]
[1644338752528,1.25885904,112.34,112.27,34.40468657]
[1644338752729,1.25885904,112.35,112.27,34.40468657]
[1644338753632,1.25885904,112.35,112.27,32.4194]
[1644338753829,1.25885904,112.34,112.27,26.4194]
[1644338754029,1.25885904,112.35,112.27,32.4194]
[1644338755330,1.25885904,112.35,112.27,32.1694]
[1644338755532,49.66191812,112.35,112.27,32.1694]
[1644338755733,49.66191812,112.35,112.27,26.1694]
[1644338755933,1.25885904,112.34,112.27,13.3594]
[1644338756137,51.38998708,112.33,112.27,13.3594]
[1644338756334,52.64884612,112.33,112.27,13.3594]
[1644338756934,52.64884612,112.33,112.26,13.3618]
[1644338757136,66.04584005,112.33,112.26,13.3618]
[1644338757333,66.01074612,112.33,112.26,13.3618]
[1644338757535,4.452,112.32,112.26,13.3618]
[1644338757735,43.10234355,112.31,112.26,13.3618]
[1644338757938,43.10234355,112.31,112.25,13.3631]
[1644338758136,60.91984355,112.31,112.2,4.453]
[1644338758336,1.25885904,112.3,112.2,17.263]
[1644338758536,37.41862394,112.29,112.2,18.81]
[1644338758738,37.41862394,112.29,112.2,6.0]
[1644338759036,37.41862394,112.29,112.18,16.764]
[1644338759236,0.03509393,112.28,112.21,13.367]
[1644338759436,50.82071787,112.29,112.21,13.367]
[1644338759836,52.07957691,112.29,112.21,13.367]
[1644338760236,54.1873324,112.29,112.18,16.764]
[1644338760437,13.3694,112.26,112.2,13.3692]
[1644338760637,39.78492519,112.25,112.2,13.3692]
[1644338760838,0.03509393,112.27,112.2,13.3692]
[1644338761036,50.31365297,112.28,112.2,13.3692]
[1644338761241,45.85865297,112.28,112.2,13.3692]
[1644338761939,49.15779601,112.25,112.19,13.3702]
[1644338762139,13.3695,112.25,112.19,13.3702]
[1644338763340,44.84528711,112.24,112.19,13.3702]
[1644338764942,13.3695,112.25,112.19,13.3702]
[1644338765144,14.62735904,112.26,112.19,15.35383583]
[1644338765343,1.25885904,112.26,112.19,15.60383583]
[1644338765542,1.29395297,112.27,112.2,4.455]
[1644338765745,1.25885904,112.27,112.22,13.367]
[1644338765943,46.83139115,112.26,112.21,1.98363583]
[1644338766144,1.25885904,112.27,112.22,1.98363583]
[1644338766354,14.62505904,112.28,112.22,2.23363583]
[1644338766747,14.62505904,112.28,112.22,0.25]
[1644338766965,14.62505904,112.28,112.22,13.617]
[1644338767173,1.25885904,112.28,112.22,15.60063583]
[1644338767371,35.10522587,112.28,112.22,15.60063583]
[1644338767771,1.29395297,112.29,112.22,15.60063583]
[1644338768070,1.25885904,112.29,112.22,15.60063583]
[1644338768276,14.62395904,112.29,112.22,13.367]
[1644338768472,1.25885904,112.28,112.21,13.368]
[1644338768672,1.25885904,112.27,112.21,13.368]
[1644338768877,39.96219266,112.26,112.19,17.264]
[1644338769274,41.2210517,112.26,112.19,4.454]
[1644338769776,54.5899517,112.26,112.2,13.3693]
[1644338770774,59.0449517,112.26,112.2,13.3693]
[1644338771384,1.25885904,112.25,112.19,13.3703]
[1644338771583,4.455,112.24,112.16,12.81]
[1644338771786,13.3748,112.21,112.12,12.81]
[1644338771977,39.85648582,112.2,112.12,12.81]
[1644338772379,39.85648582,112.2,112.13,4.457]
[1644338772578,5.71585904,112.23,112.13,4.457]
[1644338772779,1.25885904,112.23,112.13,4.457]
[1644338773178,1.25885904,112.23,112.12,12.81]
[1644338773478,4.457,112.22,112.12,12.81]
[1644338773678,13.3745,112.21,112.15,13.3754]
[1644338773891,1.25885904,112.23,112.15,13.3754]
[1644338774083,53.92515297,112.25,112.15,15.60903583]
[1644338774279,49.46815297,112.25,112.15,15.60903583]
[1644338774678,1.25885904,112.24,112.15,15.60903583]
[1644338774881,53.01957837,112.24,112.15,15.60903583]
[1644338775179,53.01957837,112.24,112.15,20.06503583]
[1644338775380,54.27843741,112.24,112.15,20.06503583]
[1644338775783,13.3721,112.23,112.15,20.06503583]
[1644338775980,17.8281,112.23,112.15,15.60903583]
[1644338776486,17.8281,112.23,112.15,20.06503583]
[1644338777686,13.3721,112.23,112.15,15.60903583]
[1644338778385,39.2714135,112.22,112.15,13.6254]
[1644338778584,4.456,112.24,112.15,13.6254]
[1644338778796,1.29395297,112.26,112.17,121.0]
[1644338778993,1.25885904,112.28,112.19,13.3692]
[1644338779186,1.29395297,112.29,112.19,19.3692]
[1644338779388,0.03509393,112.28,112.2,17.264]
[1644338779591,1.25885904,112.31,112.2,25.24763583]
[1644338779592,0.03509393,112.3,112.2,25.24763583]
[1644338779886,0.03509393,112.3,112.22,13.3625]
[1644338780085,0.03509393,112.31,112.23,17.263]
[1644338780284,0.03509393,112.3,112.23,17.513]
[1644338780484,0.03509393,112.3,112.23,23.513]
[1644338780787,39.22927623,112.31,112.23,23.513]
[1644338781386,39.22927623,112.31,112.25,13.3619]
[1644338781593,40.48813527,112.31,112.2,1.98363583]
[1644338781785,6.59684942,112.3,112.16,12.81]
[1644338781987,47.68976221,112.27,112.17,4.455]
[1644338782185,0.03509393,112.26,112.18,12.81]
[1644338782586,0.03509393,112.26,112.19,17.8251]
[1644338782785,0.03509393,112.28,112.2,12.81]
[1644338782986,0.03509393,112.29,112.2,12.81]
[1644338783188,48.58335904,112.3,112.2,13.06]
[1644338783189,0.03509393,112.28,112.2,13.06]
[1644338783389,0.03509393,112.29,112.2,13.06]
[1644338783589,0.03509393,112.28,112.22,13.364]
[1644338783788,0.03509393,112.29,112.22,13.364]
[1644338784789,13.40039393,112.29,112.22,13.364]
[1644338784990,48.13709182,112.28,112.22,13.364]
[1644338785190,13.40039393,112.29,112.22,13.614]
[1644338785615,13.40039393,112.29,112.22,13.364]
[1644338785791,14.65925297,112.29,112.22,13.364]
[1644338786189,42.83831918,112.28,112.22,13.364]
[1644338788592,42.83831918,112.28,112.22,13.614]
[1644338788791,0.03509393,112.29,112.22,13.614]
[1644338790094,1.29395297,112.29,112.22,13.614]
[1644338790495,0.03509393,112.29,112.22,13.614]
[1644338791595,1.29395297,112.29,112.22,13.614]
[1644338791795,48.14302546,112.28,112.22,13.614]
[1644338791996,1.29395297,112.29,112.22,13.614]
[1644338792500,14.65945297,112.29,112.22,13.614]
[1644338792901,34.52819961,112.28,112.22,13.614]
[1644338793522,14.65945297,112.29,112.22,13.614]
[1644338793722,1.29395297,112.29,112.22,13.614]
[1644338794126,1.25885904,112.3,112.22,13.614]
[1644338794330,1.29395297,112.3,112.25,13.3601]
[1644338794527,0.03509393,112.3,112.23,12.67861422]
[1644338794730,44.41167878,112.32,112.24,0.25]
[1644338794927,44.41167878,112.32,112.24,4.703]
[1644338795123,44.41167878,112.32,112.24,0.25]
[1644338795323,44.41167878,112.32,112.26,13.3624]
[1644338795524,44.37658485,112.32,112.26,13.3624]
[1644338795725,36.28410724,112.3,112.21,10.7]
[1644338795924,37.54296628,112.3,112.19,15.152]
[1644338796126,0.03509393,112.29,112.19,10.452]
[1644338796323,47.94941418,112.28,112.19,6.0]
[1644338796524,47.98450811,112.28,112.19,6.0]
[1644338796731,13.3728,112.24,112.15,15.154]
[1644338796933,13.3728,112.24,112.14,34.31682009]
[1644338796934,41.6827583,112.23,112.14,33.05289496]
[1644338797127,45.48784228,112.21,112.14,33.05289496]
[1644338797331,45.48784228,112.21,112.1,6.4297516]
[1644338797529,45.48784228,112.21,112.09,13.3825]
[1644338797530,57.44670132,112.21,112.09,13.3825]
[1644338797727,42.89013617,112.19,112.06,1.26392513]
[1644338797928,42.44883167,112.17,112.04,34.63531748]
[1644338798126,42.44883167,112.17,112.07,25.46514333]
[1644338798328,42.40270237,112.15,112.07,25.46514333]
[1644338798527,42.40270237,112.15,112.05,25.46514333]
[1644338798729,48.56999011,112.13,112.07,13.3849]
[1644338799028,61.95369011,112.13,112.07,13.3849]
[1644338800128,48.56999011,112.13,112.07,13.3849]
[1644338800729,44.6113,112.16,112.07,13.3849]
[1644338800930,44.6054,112.18,112.07,13.3849]
[1644338801132,13.3803,112.16,112.1,13.3804]
[1644338801329,13.3803,112.16,112.1,13.6304]
[1644338802830,46.97134441,112.17,112.1,13.6304]
[1644338803030,60.35014441,112.17,112.1,13.6304]
[1644338803530,71.4784,112.21,112.1,13.6304]
[1644338803732,71.4784,112.21,112.11,4.458]
[1644338803932,49.0394,112.24,112.14,13.3749]
[1644338804136,1.25885904,112.25,112.15,4.456]
[1644338804336,5.71485904,112.26,112.15,16.066]
[1644338804538,1.25885904,112.26,112.15,22.066]
[1644338804733,1.25885904,112.26,112.16,10.7]
[1644338804937,5.71385904,112.26,112.18,13.3703]
[1644338805137,42.13865772,112.27,112.18,19.3703]
[1644338805445,14.62715904,112.26,112.18,19.6203]
[1644338805634,13.3683,112.26,112.18,19.6203]
[1644338806437,13.3683,112.26,112.18,13.6203]
[1644338806635,13.3683,112.26,112.19,4.455]
[1644338806934,13.40279393,112.27,112.21,13.368]
[1644338807136,13.3677,112.27,112.21,13.368]
[1644338807537,13.3677,112.27,112.21,19.368]
[1644338808936,13.3677,112.27,112.21,13.368]
[1644338809738,13.3677,112.27,112.21,19.368]
[1644338810937,17.8217,112.27,112.21,19.368]
[1644338811341,17.8217,112.27,112.21,13.368]
[1644338812840,13.3677,112.27,112.21,13.368]
[1644338816946,17.85539393,112.28,112.21,13.368]
[1644338817148,36.5993622,112.29,112.21,13.618]
[1644338817550,36.5993622,112.29,112.21,13.368]
[1644338818452,4.454,112.28,112.21,13.368]
[1644338818951,48.6802325,112.27,112.21,13.368]
[1644338822052,62.0477325,112.27,112.21,13.368]
[1644338822651,66.5017325,112.27,112.21,13.368]
[1644338824651,66.5017325,112.27,112.2,13.3693]
[1644338824851,46.73990026,112.25,112.2,13.3693]
[1644338825253,1.29395297,112.28,112.2,13.3693]
[1644338825456,1.29395297,112.29,112.2,19.3693]
[1644338825661,0.03509393,112.29,112.2,32.03797634]
[1644338825858,0.03509393,112.29,112.21,4.454]
[1644338826158,1.25885904,112.31,112.23,13.3625]
[1644338826354,0.03509393,112.29,112.23,13.3625]
[1644338826557,1.25885904,112.31,112.23,19.6125]
[1644338826558,4.48809393,112.31,112.23,19.6125]
[1644338826756,42.98287929,112.3,112.23,19.6125]
[1644338826980,1.29395297,112.31,112.23,19.3625]
[1644338827577,1.29395297,112.31,112.23,24.0655]
[1644338827777,0.03509393,112.31,112.24,10.7]
[1644338827978,0.03509393,112.32,112.26,13.3587]
[1644338828180,43.60886375,112.34,112.26,13.6087]
[1644338828383,0.03509393,112.33,112.26,13.6087]
[1644338828580,43.60886375,112.34,112.26,13.6087]
[1644338829782,1.29395297,112.34,112.26,13.6087]
[1644338829984,0.03509393,112.34,112.27,15.152]
[1644338830185,4.76577441,112.41,112.3,121.0]
[1644338830385,50.8266321,112.42,112.29,13.3537]
[1644338830386,50.8266321,112.42,112.31,131.7]
[1644338830586,5.63441265,112.42,112.32,4.449]
[1644338830783,3.1113321,112.42,112.32,17.36306671]
[1644338830983,3.1113321,112.42,112.32,23.36306671]
[1644338831186,3.1113321,112.42,112.33,1.96406671]
[1644338831488,45.20466278,112.43,112.34,10.7]
[1644338831983,47.27342572,112.41,112.29,4.448]
[1644338832282,4.45,112.4,112.3,10.7]
[1644338832484,6.55775549,112.4,112.3,10.7]
[1644338832682,4.45,112.4,112.31,17.8042]
[1644338832883,4.45,112.4,112.31,28.5042]
[1644338833082,4.45,112.4,112.31,36.71826671]
[1644338833484,17.8027,112.42,112.31,36.71826671]
[1644338833887,46.18462194,112.41,112.31,36.71826671]
[1644338834083,59.53722194,112.41,112.31,30.71826671]
[1644338834287,59.53722194,112.41,112.31,28.5042]
[1644338834487,59.53722194,112.41,112.31,28.7542]
[1644338834687,59.53722194,112.41,112.31,28.5042]
[1644338834885,59.53722194,112.41,112.32,1.96406671]
[1644338835084,13.3565,112.38,112.3,13.3563]
[1644338835286,39.30686944,112.37,112.27,6.41306671]
[1644338835484,43.75686944,112.37,112.26,40.1436]
[1644338835685,39.30686944,112.37,112.26,40.3936]
[1644338835885,46.3796,112.39,112.27,4.45]
[1644338836485,46.3796,112.39,112.27,6.41406671]
[1644338836683,46.3796,112.39,112.29,13.3576]
[1644338836684,13.3575,112.37,112.29,13.3576]
[1644338836887,49.82431792,112.37,112.29,13.3576]
[1644338839289,13.3575,112.37,112.29,13.6076]
[1644338839490,13.3556,112.38,112.3,1.96406671]
[1644338839687,46.3796,112.39,112.31,13.3543]
[1644338840292,46.63231702,112.38,112.31,13.3543]
[1644338840593,59.98791702,112.38,112.31,13.3543]
[1644338841390,64.43791702,112.38,112.31,13.3543]
[1644338842194,64.43791702,112.38,112.3,13.3565]
[1644338842394,59.98791702,112.38,112.3,13.3565]
[1644338842698,4.45,112.37,112.3,13.3565]
[1644338842894,35.0475649,112.36,112.3,13.3565]
[1644338845000,48.4053649,112.36,112.29,13.3578]
[1644338846301,48.4053649,112.36,112.29,13.6078]
[1644338846699,35.0475649,112.36,112.29,13.6078]
[1644338846900,13.3565,112.38,112.29,13.6078]
[1644338847302,13.3565,112.38,112.29,15.57186671]
[1644338847504,13.3565,112.38,112.29,13.6078]
[1644338847702,15.46425549,112.38,112.29,13.3578]
[1644338847900,48.58752441,112.37,112.29,13.3578]
[1644338848101,66.39462441,112.37,112.29,13.3578]
[1644338848502,17.8071,112.37,112.29,13.3578]
[1644338848802,4.45,112.37,112.29,13.6078]
[1644338849004,46.3796,112.39,112.29,13.6078]
[1644338849203,4.45,112.38,112.29,13.3578]
[1644338849402,6.55775549,112.38,112.29,13.3578]
[1644338849606,38.69139146,112.37,112.29,13.6078]
[1644338850003,40.79914695,112.37,112.29,13.6078]
[1644338850204,40.79914695,112.37,112.29,13.3578]
[1644338850704,4.45,112.36,112.29,13.3578]
[1644338850907,39.88432266,112.35,112.27,13.3592]
[1644338851107,41.99207815,112.35,112.27,13.3592]
[1644338851306,2.10775549,112.34,112.27,13.3592]
[1644338851506,48.09981902,112.33,112.27,13.3592]
[1644338852005,4.452,112.35,112.27,13.3592]
[1644338852207,13.3592,112.35,112.27,13.3592]
[1644338852408,61.71043604,112.39,112.27,13.3592]
[1644338852606,4.45,112.38,112.27,13.3592]
[1644338853007,35.30693102,112.37,112.27,17.8092]
[1644338853206,35.30693102,112.37,112.27,18.0592]
[1644338856310,48.90268055,112.39,112.27,32.86360185]
[1644338856510,6.97308055,112.4,112.27,38.86360185]
[1644338856710,2.52308055,112.4,112.31,13.3517]
[1644338856913,2.52308055,112.41,112.31,17.8017]
[1644338857111,4.449,112.4,112.31,13.6017]
[1644338857312,36.77821845,112.39,112.31,13.6017]
[1644338858114,36.77821845,112.39,112.31,13.3517]
[1644338858313,39.301299,112.39,112.31,13.3517]
[1644338858613,43.751299,112.39,112.31,13.3517]
[1644338858913,39.301299,112.39,112.31,13.6017]
[1644338859113,39.301299,112.39,112.31,13.3517]
[1644338859611,36.77821845,112.39,112.31,13.3517]
[1644338859813,4.45,112.38,112.31,13.3517]
[1644338860014,40.22543295,112.37,112.31,13.3517]
[1644338860213,40.22543295,112.37,112.3,13.3567]